bitfinex/quotes_ETHUSD_20250411
["timestamp","ask_amount","ask_price","bid_price","bid_amount"]
[1744363198888,6.45168,1550.0,1549.8,3.0]
[1744363199089,6.45207,1549.9,1549.6,7.27443]
[1744363199299,6.45168,1550.0,1549.7,0.727443]
[1744363199489,6.45163,1550.0,1549.7,7.180233]
[1744363199930,12.90351,1550.0,1549.7,7.180233]
[1744363200223,6.45178,1550.0,1549.7,7.180293]
[1744363200423,12.90376,1550.0,1549.7,0.727443]
[1744363200721,0.7808,1549.8,1549.5,6.45356]
[1744363200921,0.7808,1549.8,1549.4,12.90806]
[1744363200922,13.68621,1549.8,1549.4,12.90806]
[1744363201086,7.2334,1549.8,1549.4,12.97247211]
[1744363201290,13.68604,1549.8,1549.5,3.0]
[1744363202098,6.45343,1549.6,1549.3,6.45448]
[1744363202296,7.26564,1549.5,1549.2,12.9096]
[1744363202617,0.8119,1549.5,1549.3,6.4545]
[1744363203194,0.8119,1549.5,1549.2,7.74582]
[1744363203806,7.2656,1549.5,1549.2,7.74582]
[1744363204000,7.24924,1549.9,1549.6,6.45303]
[1744363204223,7.24924,1549.9,1549.5,12.90718]
[1744363204524,7.21952,1550.1,1549.6,0.89492678]
[1744363204711,0.7683,1550.1,1549.9,6.4519]
[1744363205224,13.66684,1550.4,1550.0,6.4514]
[1744363205532,7.21668,1550.4,1550.1,12.90188]
[1744363205830,0.7667,1550.4,1550.1,12.90188]
[1744363206006,7.21669,1550.4,1550.1,7.78944932]
[1744363206195,13.66689,1550.4,1550.1,1.33856932]
[1744363206391,0.7667,1550.4,1550.1,7.85403367]
[1744363206696,0.7667,1550.4,1550.1,1.33856932]
[1744363206908,6.45075,1550.3,1549.9,13.67815]
[1744363207100,7.21673,1550.4,1550.0,0.06450893]
[1744363207299,7.21673,1550.4,1550.1,6.45093]
[1744363207496,7.21673,1550.4,1550.1,12.90196]
[1744363207812,6.44937,1550.6,1550.2,7.24546]
[1744363207996,6.44937,1550.6,1550.3,6.45034]
[1744363208899,6.44937,1550.6,1550.3,12.90053]
[1744363209097,0.7765,1550.7,1550.2,2.01182511]
[1744363209430,7.22459,1550.4,1550.2,0.724546]
[1744363209797,0.7745,1550.4,1550.2,0.724546]
[1744363210129,7.23102,1550.6,1550.2,13.625826]
[1744363210330,7.23102,1550.6,1550.3,1.3625826]
[1744363210542,13.68053,1550.6,1550.3,1.3625826]
[1744363210844,0.7819,1550.6,1550.2,0.724546]
[1744363210998,0.7556,1550.8,1550.5,6.44953]
[1744363211210,0.7556,1550.8,1550.3,7.20301]
[1744363211414,6.44903,1550.7,1550.3,7.20301]
[1744363211835,6.44903,1550.7,1550.3,7.26750283]
[1744363212339,0.7556,1550.8,1550.5,6.44924]
[1744363212546,12.89622,1550.9,1550.5,7.094164]
[1744363213039,0.7792,1551.0,1550.7,6.44857]
[1744363213254,7.22671,1551.0,1550.6,6.44911]
[1744363213457,7.22671,1551.0,1550.6,6.44897]
[1744363213613,0.7792,1551.0,1550.7,0.8302]
[1744363213813,13.66322,1551.2,1550.8,12.89615]
[1744363214012,0.7696,1551.2,1550.9,6.44755]
[1744363214245,0.7696,1551.2,1550.9,6.51201961]
[1744363214661,0.7696,1551.2,1550.9,12.89527]
[1744363215155,7.2164,1551.2,1550.9,6.51201961]
[1744363215360,13.66332,1551.2,1550.8,17.269035]
[1744363215660,7.2164,1551.2,1550.9,7.5299035]
[1744363215862,7.30579,1551.4,1551.0,6.44743]
[1744363216158,7.30579,1551.4,1551.1,6.511493]
[1744363216313,7.15579,1551.4,1551.1,1.4375953]
[1744363216514,7.15579,1551.4,1551.1,1.3731323]
[1744363216715,7.25593,1551.4,1551.1,1.3731323]
[1744363216911,6.44662,1551.2,1550.9,4.0820835]
[1744363217116,6.44662,1551.2,1550.9,10.59437248]
[1744363217358,6.44662,1551.2,1550.9,17.04209248]
[1744363217657,6.44627,1551.3,1551.0,13.66075]
[1744363217860,7.25582,1551.4,1551.1,6.44701]
[1744363218058,13.70179,1551.4,1551.1,6.44701]
[1744363218215,0.81,1551.4,1551.0,0.766]
[1744363218421,6.4462,1551.3,1551.0,7.57693235]
[1744363218724,6.44604,1551.4,1551.1,0.7897]
[1744363218946,6.44621,1551.3,1551.1,0.7897]
[1744363219248,6.4467,1551.2,1551.0,1.12959235]
[1744363219549,0.8062,1551.3,1550.7,0.7838]
[1744363219761,0.8062,1551.0,1550.3,0.7838]
[1744363220044,6.4489,1550.7,1550.4,12.89958]
[1744363220244,6.4489,1550.7,1550.4,6.44979]
[1744363220410,6.4489,1550.7,1550.5,0.70946786]
[1744363220614,12.89787,1550.7,1550.5,0.644979]
[1744363220814,6.44926,1550.6,1550.3,7.23408]
[1744363221145,6.44926,1550.6,1550.3,7.29857053]
[1744363221566,7.2512,1550.7,1550.3,7.29848053]
[1744363221852,6.44837,1550.8,1550.5,6.4495]
[1744363221853,12.8969,1550.8,1550.5,6.4495]
[1744363222021,6.44837,1550.8,1550.5,7.80389985]
[1744363222350,12.89693,1550.8,1550.5,1.289911]
[1744363222515,6.44871,1550.7,1550.5,1.289911]
[1744363222935,6.44924,1550.6,1550.3,7.23408]
[1744363223137,6.44845,1550.8,1550.4,6.51428029]
[1744363223369,6.44874,1550.7,1550.4,6.51428029]
[1744363223920,6.44845,1550.8,1550.5,6.44948]
[1744363224337,12.89691,1550.8,1550.5,6.44948]
[1744363224545,6.44871,1550.7,1550.3,7.23406]
[1744363224733,12.89857,1550.6,1550.3,7.23406]
[1744363225137,6.44955,1550.5,1550.3,3.0]
[1744363225446,7.27765,1550.5,1550.2,3.5529265]
[1744363225650,13.72735,1550.5,1550.2,10.0036665]
[1744363225853,13.72735,1550.5,1550.2,11.72523615]
[1744363226221,6.45,1550.4,1550.2,2.27449615]
[1744363226422,6.45086,1550.2,1549.9,7.23612]
[1744363226678,12.90181,1550.2,1550.0,3.0]
[1744363226854,12.90183,1550.2,1549.9,7.23617]
[1744363227024,6.45086,1550.2,1550.0,0.06450767]
[1744363227225,6.45047,1550.3,1549.9,1.27108619]
[1744363227462,6.45047,1550.3,1550.0,0.06450528]
[1744363227757,12.90105,1550.3,1550.0,0.06450528]
[1744363227926,6.45086,1550.2,1550.0,0.06450528]
[1744363228257,6.45047,1550.3,1550.0,0.06450528]
[1744363228435,6.45047,1550.3,1550.0,0.49806443]
[1744363228632,6.45094,1550.2,1550.0,0.49806443]
[1744363229056,6.45047,1550.3,1550.0,0.49806443]
[1744363229637,6.4508,1550.2,1550.0,0.49806443]
[1744363229844,13.72757,1550.5,1550.1,6.45103]
[1744363230053,13.72757,1550.5,1550.1,7.79109389]
[1744363230365,6.45039,1550.3,1550.1,1.34006389]
[1744363230553,6.45039,1550.3,1550.0,6.88509915]
[1744363230755,6.45039,1550.3,1550.0,6.94960495]
[1744363231268,6.45039,1550.3,1550.0,6.88509915]
[1744363231571,12.90094,1550.3,1550.0,6.94960498]
[1744363231772,0.7673,1550.7,1550.2,0.7728]
[1744363231942,0.48761115,1551.1,1550.5,6.44951]
[1744363231943,6.44842,1550.8,1550.5,6.44951]
[1744363232142,6.44842,1550.8,1550.6,0.29924596]
[1744363232642,12.89697,1550.8,1550.6,0.29924596]
[1744363232837,6.44842,1550.8,1550.6,0.29924596]
[1744363233042,12.89688,1550.8,1550.5,6.44938]
[1744363233237,6.44785,1551.0,1550.7,0.2990934]
[1744363233443,0.7991,1551.1,1550.7,0.06447926]
[1744363233750,7.24535,1551.3,1550.9,6.44752]
[1744363233945,7.24535,1551.3,1551.0,6.44731]
[1744363234279,7.22206,1551.5,1551.1,6.44688]
[1744363234480,7.22206,1551.5,1551.2,6.44649]
[1744363234646,0.7766,1551.5,1551.2,0.29133478]
[1744363234841,6.44619,1551.4,1551.2,0.29133478]
[1744363235080,12.89238,1551.4,1551.0,7.20739]
[1744363235276,6.44625,1551.3,1551.0,8.93737358]
[1744363235885,12.89238,1551.4,1551.0,15.38469358]
[1744363236089,13.66761,1551.5,1551.1,6.44687]
[1744363236457,13.66761,1551.5,1551.2,0.29145533]
[1744363236780,6.44585,1551.4,1551.2,0.29145533]
[1744363237673,6.4462,1551.3,1551.2,0.29145533]
[1744363237880,6.4462,1551.3,1551.0,11.873018]
[1744363238058,6.4462,1551.3,1551.2,0.29079228]
[1744363238258,6.4462,1551.3,1551.1,1.47909042]
[1744363238469,6.4462,1551.3,1551.2,0.29079228]
[1744363239390,12.89262,1551.3,1551.2,0.29031013]
[1744363239679,12.89261,1551.3,1551.0,6.44727]
[1744363239882,12.89261,1551.3,1551.2,0.29079228]
[1744363240083,6.44662,1551.2,1551.1,0.29154751]
[1744363240279,7.22201,1551.5,1550.9,6.44771]
[1744363240280,6.44586,1551.4,1551.2,0.29091283]
[1744363240481,6.44542,1551.5,1551.2,0.7522]
[1744363240656,12.89106,1551.5,1551.3,0.28745544]
[1744363241381,6.44579,1551.4,1551.3,0.28745544]
[1744363241580,7.22339,1551.4,1551.3,0.28745544]
[1744363241788,6.44622,1551.3,1551.0,7.29306175]
[1744363242151,13.66952,1551.4,1551.0,13.74032175]
[1744363242387,7.22339,1551.4,1551.0,13.67586]
[1744363242687,13.66943,1551.4,1551.0,8.64458205]
[1744363242887,13.66943,1551.4,1551.0,8.70904862]
[1744363243886,6.44623,1551.3,1551.0,8.64458205]
[1744363244484,6.44595,1551.4,1551.0,8.70921864]
[1744363244687,12.89198,1551.4,1551.0,15.15648864]
[1744363245001,6.44623,1551.3,1551.0,8.64459205]
[1744363245385,6.44623,1551.3,1551.0,15.15635869]
[1744363245590,6.44595,1551.4,1551.1,6.4468]
[1744363245779,12.89196,1551.4,1551.1,6.4468]
[1744363246158,6.44627,1551.3,1551.0,7.22858]
[1744363246389,6.44627,1551.3,1551.0,7.29304666]
[1744363246584,7.811386,1551.4,1551.0,7.29304666]
[1744363246766,7.811386,1551.4,1551.0,7.22858]
[1744363246968,6.44595,1551.4,1551.1,6.44678]
[1744363247675,12.89196,1551.4,1551.1,6.44678]
[1744363248093,6.44595,1551.4,1551.1,6.44678]
[1744363248685,6.44595,1551.4,1551.1,12.89369]
[1744363248908,6.44595,1551.4,1551.0,13.67598]
[1744363249106,6.44595,1551.4,1551.0,15.09201405]
[1744363249298,7.2078,1551.5,1551.2,6.44642]
[1744363249499,13.65336,1551.5,1551.2,6.44642]
[1744363249678,0.398527,1551.6,1551.3,6.44619]
[1744363249877,6.843597,1551.6,1551.3,6.44619]
[1744363250101,13.288757,1551.6,1551.3,6.44619]
[1744363250411,6.843597,1551.6,1551.3,6.44619]
[1744363250608,6.44549,1551.5,1551.2,6.51087841]
[1744363250812,13.288967,1551.6,1551.2,14.25314425]
[1744363251109,6.843597,1551.6,1551.3,6.44609]
[1744363251285,6.843487,1551.6,1551.3,12.89216]
[1744363251486,6.843487,1551.6,1551.4,0.2871856]
[1744363251686,6.44537,1551.5,1551.4,0.2871856]
[1744363251917,2.7500017,1551.5,1551.0,13.6758]
[1744363252221,6.44727,1551.1,1550.8,0.8265]
[1744363252378,0.8193,1551.2,1550.6,7.27553]
[1744363252714,12.89654,1550.9,1550.5,12.89874]
[1744363253010,7.26685,1551.0,1550.6,6.51357296]
[1744363253214,7.26685,1551.0,1550.7,6.44853]
[1744363253215,13.71451,1551.0,1550.7,6.44853]
[1744363253417,13.71451,1551.0,1550.7,1.2962103]
[1744363253577,7.26685,1551.0,1550.7,1.2962103]
[1744363253788,7.26685,1551.0,1550.7,7.7448903]
[1744363253993,6.44788,1550.9,1550.7,1.2962103]
[1744363254191,6.44788,1550.9,1550.6,3.0]
[1744363254391,6.44788,1550.9,1550.6,3.06448304]
[1744363254592,6.44788,1550.9,1550.6,9.51356304]
[1744363254822,6.44788,1550.9,1550.6,9.44908]
[1744363255005,6.44788,1550.9,1550.6,9.51356299]
[1744363255210,6.44788,1550.9,1550.6,11.15911621]
[1744363255520,12.89601,1550.9,1550.6,11.15911621]
[1744363255726,0.8193,1551.0,1550.4,0.8265]
[1744363255727,6.4489,1550.7,1550.4,7.27632]
[1744363255927,13.71454,1551.0,1550.4,0.89098893]
[1744363256224,13.71455,1551.0,1550.6,6.44908]
[1744363256397,6.44791,1550.9,1550.6,6.44908]
[1744363256598,6.44791,1550.9,1550.7,0.644908]
[1744363256790,6.44791,1550.9,1550.5,6.92799052]
[1744363256989,6.44791,1550.9,1550.6,0.06448414]
[1744363257194,7.26697,1551.0,1550.7,6.44868]
[1744363257398,6.44679,1551.2,1550.8,0.8299]
[1744363257621,6.44679,1551.2,1550.8,7.27794]
[1744363257622,12.89372,1551.2,1550.8,7.27794]
[1744363257922,6.44679,1551.2,1550.9,0.727794]
[1744363258122,0.7745,1551.3,1550.9,1.02313753]
[1744363258422,12.89471,1551.1,1550.9,0.29534353]
[1744363258619,6.44745,1551.0,1550.8,0.8299]
[1744363258921,6.44672,1551.2,1550.9,0.29582603]
[1744363259131,6.44672,1551.2,1550.9,6.74364603]
[1744363259425,6.44704,1551.1,1551.0,0.2941054]
[1744363260317,12.89441,1551.1,1550.8,0.8299]
[1744363260623,12.89441,1551.1,1550.9,0.29486107]
[1744363260922,6.4475,1551.0,1550.8,0.8299]
[1744363261121,13.65502,1551.0,1550.6,13.71851]
[1744363261309,7.2072,1551.0,1550.7,0.644907]
[1744363261516,12.89608,1550.9,1550.6,0.8205]
[1744363261719,6.44829,1550.8,1550.6,0.8205]
[1744363261924,6.44829,1550.8,1550.4,6.44989]
[1744363261925,6.44796,1550.9,1550.4,0.8207]
[1744363262097,12.89624,1550.9,1550.5,6.51380691]
[1744363262296,6.44796,1550.9,1550.6,6.44909]
[1744363262497,6.44725,1551.1,1550.7,7.27503687]
[1744363262729,6.44725,1551.1,1550.7,13.72360687]
[1744363263029,6.44725,1551.1,1550.7,13.65912]
[1744363263397,12.89463,1551.1,1550.7,13.65912]
[1744363263593,6.44714,1551.1,1550.8,6.44817]
[1744363263794,6.44714,1551.1,1550.9,0.644817]
[1744363264200,12.89441,1551.1,1550.9,0.644817]
[1744363264399,6.44714,1551.1,1550.9,0.644817]
[1744363264628,6.44714,1551.1,1550.8,6.44827]
[1744363264921,7.20324,1551.1,1550.7,7.21042]
[1744363265124,6.4475,1551.0,1550.7,13.65897]
[1744363265913,0.7561,1551.1,1550.8,6.44824]
[1744363266112,6.44669,1551.2,1550.8,13.37071683]
[1744363266326,6.44669,1551.2,1550.9,7.78493168]
[1744363266522,0.8025,1551.3,1551.0,7.20313]
[1744363266726,0.8025,1551.3,1551.0,13.65044]
[1744363266926,12.89185,1551.4,1551.1,0.29371159]
[1744363267128,6.44588,1551.4,1551.1,6.74071159]
[1744363267501,12.89186,1551.4,1551.1,6.74071159]
[1744363267939,12.89186,1551.4,1551.1,0.29371159]
[1744363268122,6.44623,1551.3,1551.1,0.29371159]
[1744363268511,6.44588,1551.4,1551.1,0.29371159]
[1744363268714,12.89191,1551.4,1551.1,0.29371159]
[1744363269119,6.4462,1551.3,1551.1,0.29371159]
[1744363269644,6.4462,1551.3,1551.1,1.68812775]
[1744363271228,12.89262,1551.3,1551.1,0.29371159]
[1744363271425,6.44662,1551.2,1551.1,0.29371159]
[1744363271627,7.23532,1551.2,1551.1,0.29371159]
[1744363271827,6.44796,1550.9,1550.6,8.50220969]
[1744363272033,6.44828,1550.8,1550.7,0.29590179]
[1744363272239,6.44828,1550.8,1550.4,7.2068]
[1744363272240,6.44885,1550.7,1550.4,7.2068]
[1744363272440,6.44828,1550.8,1550.5,6.74703534]
[1744363272610,12.89674,1550.8,1550.5,0.29765534]
[1744363272939,6.44828,1550.8,1550.5,6.74717534]
[1744363273144,6.44747,1551.0,1550.6,6.44876]
[1744363273318,6.44747,1551.0,1550.6,6.51324866]
[1744363273518,6.44747,1551.0,1550.7,0.94710565]
[1744363273719,12.89626,1550.9,1550.7,0.29578078]
[1744363273930,6.44828,1550.8,1550.7,0.29578078]
[1744363274130,7.24218,1550.8,1550.4,9.06753461]
[1744363274440,7.24218,1550.8,1550.4,9.13202298]
[1744363274441,6.44874,1550.7,1550.4,9.13202298]
[1744363274630,6.44874,1550.7,1550.5,0.29681017]
[1744363274833,6.44911,1550.6,1550.5,0.29681017]
[1744363275340,6.44874,1550.7,1550.5,0.29681017]
[1744363275547,6.44911,1550.6,1550.5,0.29681017]
[1744363276038,6.44911,1550.6,1550.5,0.29632712]
[1744363277113,6.44911,1550.6,1550.3,6.45018]
[1744363277308,6.44911,1550.6,1550.4,0.94198063]
[1744363277725,12.89857,1550.6,1550.4,0.94198063]
[1744363277925,6.44953,1550.5,1550.4,0.29696263]
[1744363278213,12.89864,1550.6,1550.2,16.72666]
[1744363278417,6.44911,1550.6,1550.3,0.29948453]
[1744363278740,6.44911,1550.6,1550.3,6.81419117]
[1744363278914,6.44911,1550.6,1550.3,7.87815029]
[1744363280836,6.44968,1550.5,1550.3,1.42794029]
[1744363281036,6.44926,1550.6,1550.3,1.42794029]
[1744363281241,12.89873,1550.6,1550.3,1.42794029]
[1744363281746,12.89873,1550.6,1550.3,0.29948453]
[1744363281747,6.44994,1550.4,1550.3,0.29948453]
[1744363282147,6.45053,1550.3,1549.9,12.90384]
[1744363282347,12.90113,1550.3,1549.9,12.90384]
[1744363282519,12.90113,1550.3,1549.9,6.45192]
[1744363282714,6.45053,1550.3,1549.9,12.9038]
[1744363282950,6.44941,1550.6,1550.2,6.4506]
[1744363283247,6.44923,1550.6,1550.2,12.90128]
[1744363283440,6.44923,1550.6,1550.2,12.90113]
[1744363283815,13.69135,1550.7,1550.3,6.45023]
[1744363284015,13.69127,1550.7,1550.3,12.90047]
[1744363284248,6.44954,1550.5,1550.2,6.45068]
[1744363284554,0.7936,1550.7,1550.2,6.45068]
[1744363284555,6.44913,1550.6,1550.3,0.645068]
[1744363284755,6.44913,1550.6,1550.2,6.45067]
[1744363284756,6.44971,1550.5,1550.1,14.18290123]
[1744363284916,6.44971,1550.5,1550.1,7.25992]
[1744363285119,6.44971,1550.5,1550.1,7.32442201]
[1744363285317,6.44971,1550.5,1550.2,6.45077]
[1744363285543,12.89943,1550.5,1550.2,6.45077]
[1744363285752,6.44971,1550.5,1550.2,6.45077]
[1744363286664,12.89945,1550.5,1550.1,14.19826362]
[1744363286959,12.89944,1550.5,1550.1,15.55982436]
[1744363287259,6.44971,1550.5,1550.1,15.55982436]
[1744363287457,6.44921,1550.6,1550.2,6.51510201]
[1744363287657,0.8241,1550.9,1550.4,6.44994]
[1744363287858,0.8241,1551.1,1550.7,6.44842]
[1744363288040,7.27119,1551.1,1550.8,6.44804]
[1744363288631,6.44679,1551.2,1550.8,12.89616]
[1744363288947,6.44679,1551.2,1550.9,7.26241]
[1744363288948,6.44662,1551.2,1550.9,7.26241]
[1744363289331,7.23068,1551.3,1550.9,13.77458045]
[1744363289532,7.23068,1551.3,1550.9,13.71011]
[1744363289734,7.23068,1551.3,1550.9,8.68163307]
[1744363289946,7.23068,1551.3,1550.9,15.12932307]
[1744363290139,0.4831846,1551.7,1550.9,15.12932307]
[1744363290140,6.44586,1551.4,1551.0,6.44733]
[1744363290360,6.44645,1551.3,1550.9,8.7463618]
[1744363290560,6.44674,1551.2,1550.9,2.23412307]
[1744363290759,6.44624,1551.3,1550.9,2.29859352]
[1744363290936,6.44586,1551.4,1551.0,6.44745]
[1744363291143,7.25747,1551.5,1551.1,6.44678]
[1744363291462,12.89177,1551.4,1551.1,6.44678]
[1744363291656,12.89177,1551.4,1550.9,0.8149]
[1744363291657,6.44676,1551.2,1550.9,7.26273]
[1744363292365,12.89365,1551.2,1550.9,0.8149]
[1744363292663,6.44758,1551.0,1550.6,6.44903]
[1744363292845,6.44758,1551.0,1550.6,6.44894]
[1744363293033,12.89524,1551.0,1550.6,6.44894]
[1744363293434,6.44798,1550.9,1550.6,6.44894]
[1744363293630,6.44798,1550.9,1550.6,14.266405]
[1744363293832,6.44758,1551.0,1550.7,6.4486]
[1744363294260,12.89434,1551.1,1550.7,12.89717]
[1744363294662,12.89434,1551.1,1550.7,6.44857]
[1744363295034,6.44747,1551.0,1550.7,6.44857]
[1744363295352,6.44747,1551.0,1550.7,7.8751835]
[1744363295550,6.44787,1550.9,1550.7,1.4266135]
[1744363295754,6.44787,1550.9,1550.6,13.45528571]
[1744363296063,8.517635,1551.2,1550.8,6.4481]
[1744363296235,13.67511,1551.2,1550.9,6.7408713]
[1744363296438,13.67511,1551.2,1550.9,0.2930713]
[1744363296439,6.44705,1551.1,1550.9,0.2930713]
[1744363296637,6.44705,1551.1,1550.8,7.22116]
[1744363296836,6.44705,1551.1,1550.9,0.2930713]
[1744363297030,7.22832,1551.2,1550.9,12.9600263]
[1744363297236,6.44672,1551.2,1551.0,0.29135134]
[1744363298178,12.89351,1551.2,1551.0,0.29135134]
[1744363298384,6.44703,1551.1,1551.0,0.29135134]
[1744363298681,12.89353,1551.2,1550.9,6.51233215]
[1744363298885,12.89363,1551.2,1551.0,0.2919541]
[1744363299294,7.22963,1551.1,1551.0,0.2919541]
[1744363299587,12.8961,1550.9,1550.6,7.22426]
[1744363299794,6.44857,1550.8,1550.5,12.8988]
[1744363300094,6.44797,1550.9,1550.6,6.4491]
[1744363300247,6.44797,1550.9,1550.6,13.54955846]
[1744363301047,12.89517,1551.0,1550.6,13.54955846]
[1744363301303,6.44789,1550.9,1550.6,7.10045846]
[1744363301507,12.89601,1550.9,1550.6,7.16494229]
[1744363301697,12.89593,1550.9,1550.6,7.10045846]
[1744363301901,6.44789,1550.9,1550.6,7.10045846]
[1744363302105,12.89596,1550.9,1550.6,7.10045846]
[1744363302416,6.44839,1550.8,1550.6,0.65135846]
[1744363302623,6.4495,1550.6,1550.4,0.7541]
[1744363302798,6.44956,1550.5,1550.2,6.93556732]
[1744363303105,6.44956,1550.5,1550.2,8.35379205]
[1744363303412,13.67511,1550.5,1550.2,1.90317205]
[1744363304873,13.67511,1550.5,1550.2,1.41825473]
[1744363305073,7.22536,1550.5,1550.2,1.41825473]
[1744363305294,6.44807,1550.9,1550.6,6.44892]
[1744363305635,6.44807,1550.9,1550.4,3.0]
[1744363305636,6.4485,1550.8,1550.4,9.44979]
[1744363306192,6.4485,1550.8,1550.4,9.44977]
[1744363306448,0.724527,1550.9,1550.5,6.51381844]
[1744363306449,6.44803,1550.9,1550.5,6.51381844]
[1744363306601,6.44845,1550.8,1550.5,6.51381844]
[1744363306804,6.44845,1550.8,1550.5,12.96319844]
[1744363307118,6.44845,1550.8,1550.5,8.15852366]
[1744363307319,6.44845,1550.8,1550.5,8.09403522]
[1744363307905,12.89694,1550.8,1550.5,8.09403522]
[1744363308836,12.89694,1550.8,1550.5,1.64470522]
[1744363308992,6.44911,1550.6,1550.4,3.4838538]
[1744363309734,12.8985,1550.6,1550.3,0.83]
[1744363310029,6.44968,1550.5,1550.2,6.45062]
[1744363310241,6.44968,1550.5,1550.2,12.90124]
[1744363310397,6.44911,1550.6,1550.3,6.51474679]
[1744363310792,6.44911,1550.6,1550.3,12.96499679]
[1744363311231,6.44911,1550.6,1550.3,6.45025]
[1744363311447,6.44911,1550.6,1550.4,1.08845857]
[1744363312893,6.44911,1550.6,1550.4,0.29565857]
[1744363313437,6.44953,1550.5,1550.4,0.29565857]
[1744363313794,6.45017,1550.4,1550.1,6.94544169]
[1744363314495,6.45065,1550.3,1550.0,0.7665]
[1744363314725,6.45124,1550.1,1549.8,7.26634]
[1744363314936,6.45124,1550.1,1549.8,7.26631]
[1744363315104,6.45124,1550.1,1549.8,8.70273215]
[1744363315649,6.45124,1550.1,1549.8,8.70273216]
[1744363315823,6.45124,1550.1,1549.8,9.17417758]
[1744363316023,0.8004,1550.5,1549.9,3.7513]
[1744363316200,7.25008,1550.5,1550.2,0.7726]
[1744363316393,7.25008,1550.5,1550.2,7.22307]
[1744363316739,13.6998,1550.5,1550.2,7.22307]
[1744363316935,7.25008,1550.5,1550.2,7.22307]
[1744363317694,0.8004,1550.5,1550.2,13.73822341]
[1744363317900,7.25779,1550.7,1550.3,6.45007]
[1744363318099,7.25779,1550.7,1550.4,12.89966]
[1744363318321,7.25779,1550.7,1550.4,6.44983]
[1744363318640,13.70666,1550.7,1550.4,6.44983]
[1744363318846,7.25779,1550.7,1550.4,6.44983]
[1744363320217,13.70665,1550.7,1550.4,6.44983]
[1744363320422,2.179665,1550.7,1550.2,7.71595037]
[1744363320614,2.179665,1550.7,1550.1,6.45103]
[1744363320615,0.8078,1550.4,1550.1,6.45103]
[1744363320813,6.45024,1550.4,1549.8,2.60855242]
[1744363321062,6.4532,1549.7,1549.5,10.41902319]
[1744363321239,6.45327,1549.6,1549.5,10.41902319]
[1744363321444,0.8078,1549.7,1549.5,10.41902319]
[1744363322341,6.45294,1549.7,1549.5,10.41902319]
[1744363322523,6.45208,1549.9,1549.6,6.45315]
[1744363322716,0.7972,1550.0,1549.8,6.45226]
[1744363322917,13.69815,1550.3,1549.9,7.21468]
[1744363323151,13.69815,1550.3,1549.9,7.21456]
[1744363323458,6.44999,1550.4,1549.9,0.82721347]
[1744363323607,6.45079,1550.2,1549.9,0.82721347]
[1744363323814,6.45218,1549.9,1549.5,8.47735799]
[1744363324095,12.90444,1549.9,1549.5,8.47735799]
[1744363324260,6.45218,1549.9,1549.6,6.45326]
[1744363324428,12.90353,1550.0,1549.6,6.45326]
[1744363324763,6.45166,1550.0,1549.6,12.9708663]
[1744363324911,13.71903,1550.1,1549.7,14.20239663]
[1744363325119,0.8164,1550.1,1549.8,6.45235]
[1744363325314,0.7925,1550.2,1549.9,6.45187]
[1744363325519,7.24333,1550.2,1549.8,7.2187]
[1744363325717,0.7925,1550.2,1550.0,6.45148]
[1744363325921,7.24251,1550.4,1550.1,6.45117]
[1744363326151,0.7925,1550.4,1550.1,6.45117]
[1744363326336,0.7925,1550.4,1550.2,0.30030302]
[1744363326535,0.7925,1550.4,1550.1,12.90222]
[1744363326742,0.7925,1550.6,1550.2,0.30066515]
[1744363326948,6.45032,1550.4,1550.0,6.45156]
[1744363327148,6.45036,1550.3,1550.1,0.3021459]
[1744363327464,12.90091,1550.3,1550.1,0.3021459]
[1744363327813,12.90091,1550.3,1549.9,7.25147]
[1744363327814,6.45036,1550.3,1549.9,7.25147]
[1744363328014,7.2032,1550.4,1550.2,0.30151012]
[1744363328015,13.65331,1550.4,1550.2,0.30151012]
[1744363328254,0.7532,1550.4,1550.1,12.90202]
[1744363328554,0.7532,1550.4,1550.2,0.30237636]
[1744363328718,7.20317,1550.4,1550.1,6.45101]
[1744363329067,7.20317,1550.4,1550.2,0.30189336]
[1744363329256,6.45043,1550.3,1550.2,0.30189336]
[1744363329460,6.45043,1550.3,1549.9,7.3159711]
[1744363329665,7.20317,1550.4,1550.2,0.30237628]
[1744363330132,7.20317,1550.4,1550.3,0.30174054]
[1744363330324,6.45052,1550.3,1550.0,6.45143]
[1744363330534,13.65352,1550.4,1550.1,0.30264976]
[1744363330848,6.45037,1550.3,1550.1,0.30264976]
[1744363331014,12.90097,1550.3,1550.1,0.30264976]
[1744363331216,6.45037,1550.3,1550.0,6.45161]
[1744363331464,6.45121,1550.1,1549.8,11.594292]
[1744363331752,6.45053,1550.3,1550.0,6.45143]
[1744363331936,6.45053,1550.3,1550.1,0.30337417]
[1744363332137,12.90116,1550.3,1550.1,0.30337417]
[1744363332326,6.45053,1550.3,1550.1,0.30337417]
[1744363332520,6.45078,1550.2,1550.1,0.30337417]
[1744363332723,12.90184,1550.2,1549.8,18.046612]
[1744363333018,6.45167,1550.0,1549.9,0.30416297]
[1744363333520,13.69755,1550.1,1549.5,8.60566782]
[1744363333521,6.45251,1549.8,1549.5,8.60566782]
[1744363333721,13.68674,1549.8,1549.5,2.08758799]
[1744363334018,13.68674,1549.8,1549.5,8.54125799]
[1744363334218,7.23411,1549.8,1549.5,8.54125799]
[1744363334660,0.7816,1549.8,1549.5,2.08758799]
[1744363334852,6.45327,1549.6,1549.5,1.25768799]
[1744363335151,6.45327,1549.6,1549.1,7.29282]
[1744363335152,6.4542,1549.4,1549.1,7.29282]
[1744363335349,6.45375,1549.5,1549.1,7.35727679]
[1744363335557,6.4529,1549.7,1549.4,6.45398]
[1744363336348,12.90616,1549.7,1549.3,6.45443]
[1744363336544,6.4529,1549.7,1549.3,12.90881]
[1744363336747,12.90596,1549.7,1549.3,12.90881]
[1744363336947,6.4529,1549.7,1549.4,6.45404]
[1744363337145,0.8134,1549.8,1549.5,6.45352]